bitfinex-derivatives/quotes_SOLF0:USTF0_20241017
["timestamp","ask_amount","ask_price","bid_price","bid_amount"]
[1729140657191,5.64,153.25,153.22,3.28207809]
[1729140657783,3.2635,153.23,153.22,3.28207809]
[1729140660482,3.2639,153.22,153.18,3.2644]
[1729140660682,3.2639,153.22,153.19,9.03]
[1729140661488,3.2639,153.22,153.19,12.2943]
[1729140662198,3.2639,153.21,153.19,12.2943]
[1729140662494,3.2639,153.21,153.19,3.2643]
[1729140662694,3.2639,153.21,153.19,12.2943]
[1729140663595,1.4346,153.29,153.13,11.64688606]
[1729140663789,9.03,153.27,153.22,9.03]
[1729140663988,9.03,153.27,153.23,3.27783346]
[1729140664694,9.03,153.27,153.21,12.2938]
[1729140665192,3.263,153.26,153.21,15.48216199]
[1729140665390,9.03,153.27,153.21,15.48216199]
[1729140665791,3.2632,153.25,153.21,15.48216199]
[1729140666495,3.2632,153.25,153.21,6.45216199]
[1729140668690,3.263,153.26,153.22,12.2937]
[1729140668896,5.46,153.26,153.23,9.03]
[1729140669094,79.51,153.3,153.23,9.03]
[1729140669389,1.3818,153.35,153.23,9.03]
[1729140669390,1.3818,153.35,153.26,9.03]
[1729140669587,9.03,153.32,153.26,9.03]
[1729140669792,3.2623,153.29,153.26,12.2927]
[1729140670195,3.2623,153.29,153.26,15.61559183]
[1729140671698,3.2621,153.3,153.26,15.61559183]
[1729140674397,3.2626,153.28,153.26,3.32289183]
[1729140674596,5.46,153.31,153.27,9.03]
[1729140674803,5.46,153.31,153.27,12.37281319]
[1729140675103,5.46,153.32,153.29,9.03]
[1729140676298,5.46,153.32,153.3,3.30331701]
[1729140676499,5.46,153.32,153.22,2.8252]
[1729140676500,9.03,153.3,153.25,9.03]
[1729140676700,6.5198,153.4,153.25,12.36269434]
[1729140677003,9.03,153.32,153.27,9.03]
[1729140677305,6.5198,153.4,153.28,9.03]
[1729140677306,9.03,153.34,153.28,9.03]
[1729140677499,9.03,153.35,153.3,9.03]
[1729140677700,3.2615,153.33,153.3,9.03]
[1729140678101,14.49,153.35,153.3,9.03]
[1729140678603,3.2615,153.33,153.3,9.03]
[1729140681610,14.49,153.35,153.3,9.03]
[1729140681810,3.2624,153.28,153.27,3.29287174]
[1729140682009,9.03,153.29,153.21,5.46]
[1729140682209,3.2629,153.26,153.24,9.03]
[1729140682509,3.2629,153.26,153.24,12.24815002]
[1729140683713,3.2631,153.25,153.24,12.24815002]
[1729140683911,3.2631,153.25,153.24,3.21815002]
[1729140684107,3.2638,153.22,153.19,4.28]
[1729140684320,9.03,153.25,153.19,11.8528]
[1729140684512,9.03,153.23,153.19,2.8228]
[1729140685421,3.2641,153.21,153.19,2.8228]
[1729140685924,14.49,153.23,153.17,9.03]
[1729140686111,5.46,153.24,153.2,9.03]
[1729140686722,3.2636,153.23,153.2,9.03]
[1729140687018,9.03,153.26,153.2,9.03]
[1729140687218,3.2638,153.22,153.2,9.03]
[1729140687921,3.2638,153.22,153.18,14.11]
[1729140688820,5.46,153.25,153.18,14.11]
[1729140689923,3.2636,153.23,153.18,17.3745]
[1729140690421,5.46,153.25,153.18,14.11]
[1729140690622,5.46,153.25,153.18,17.3746]
[1729140691022,1.4174,153.28,153.18,17.3746]
[1729140691328,5.46,153.27,153.18,14.11]
[1729140691712,5.46,153.27,153.18,19.57]
[1729140691917,3.2635,153.24,153.19,3.2642]
[1729140692315,5.46,153.27,153.19,3.2642]
[1729140693420,3.2635,153.23,153.2,14.11]
[1729140694422,3.264,153.21,153.18,5.46]
[1729140694617,5.46,153.27,153.19,14.11]
[1729140694822,1.4174,153.28,153.19,14.11]
[1729140695027,5.46,153.26,153.19,14.11]
[1729140695323,3.2636,153.23,153.19,17.3744]
[1729140698030,3.2636,153.23,153.2,3.2641]
[1729140698724,3.2632,153.25,153.22,3.2636]
[1729140698923,3.2632,153.25,153.22,3.22048393]
[1729140699123,3.2632,153.25,153.22,2.7478]
[1729140699325,3.2632,153.25,153.22,9.31383258]
[1729140699726,5.44,153.29,153.22,9.31383258]
[1729140699727,3.2633,153.24,153.22,9.31383258]
[1729140701321,5.44,153.29,153.22,3.30243258]
[1729140701522,3.2635,153.23,153.21,14.11]
[1729140703925,5.44,153.29,153.21,14.11]
[1729140704826,5.44,153.29,153.22,3.2637]
[1729140705032,5.44,153.29,153.22,6.59040816]
[1729140705235,5.44,153.29,153.22,3.2637]
[1729140705435,3.263,153.26,153.22,3.2637]
[1729140705836,3.263,153.26,153.22,6.46111418]
[1729140707434,5.44,153.29,153.22,6.46111418]
[1729140707636,3.2631,153.25,153.22,6.46111418]
[1729140707828,3.2631,153.25,153.24,9.02]
[1729140711438,3.2618,153.31,153.28,3.2623]
[1729140711632,9.02,153.35,153.3,9.02]
[1729140711833,14.46,153.36,153.3,9.02]
[1729140712335,5.44,153.37,153.32,9.02]
[1729140713136,5.44,153.37,153.32,12.34398273]
[1729140713537,3.261,153.35,153.32,12.34398273]
[1729140719344,6.518,153.45,153.33,12.2813]
[1729140719643,6.518,153.45,153.35,9.02]
[1729140719644,9.02,153.4,153.35,9.02]
[1729140719838,14.46,153.4,153.35,9.02]
[1729140720336,70.48,153.46,153.38,9.02]
[1729140720537,9.02,153.44,153.38,9.02]
[1729140720742,9.02,153.41,153.34,5.44]
[1729140721047,9.02,153.39,153.34,12.361605]
[1729140721234,3.2608,153.36,153.34,3.341605]
[1729140721439,3.2608,153.36,153.34,9.02]
[1729140721640,3.2608,153.36,153.34,12.23502658]
[1729140727540,3.2606,153.37,153.35,9.02]
[1729140727744,76.9975,153.46,153.36,9.02]
[1729140727943,9.02,153.43,153.38,9.02]
[1729140728143,9.02,153.43,153.39,9.02]
[1729140728738,3.2598,153.41,153.39,9.02]
[1729140729545,3.2598,153.41,153.39,12.25647837]
[1729140732446,5.26,153.43,153.39,12.25647837]
[1729140732751,3.2595,153.42,153.39,12.25647837]
[1729140734748,3.2598,153.41,153.39,12.25647837]
[1729140734942,3.2598,153.41,153.39,3.23647837]
[1729140735151,3.2598,153.41,153.38,9.02]
[1729140735651,3.2598,153.41,153.39,3.2955132]
[1729140736153,3.2601,153.39,153.36,9.02]
[1729140741157,3.2603,153.38,153.36,9.02]
[1729140742848,9.02,153.39,153.34,3.33976252]
[1729140743053,9.02,153.39,153.32,1.4229]
[1729140743259,9.02,153.36,153.33,3.32235946]
[1729140743452,9.02,153.36,153.31,2.7496]
[1729140744259,9.02,153.36,153.31,6.08663708]
[1729140744564,9.02,153.36,153.31,2.7496]
[1729140745061,3.2613,153.34,153.32,3.32790434]
[1729140745460,5.26,153.39,153.3,9.02]
[1729140745461,9.02,153.35,153.3,9.02]
[1729140745953,3.2615,153.33,153.31,3.21304557]
[1729140746762,3.2615,153.33,153.3,9.02]
[1729140747257,3.2617,153.32,153.28,3.2623]
[1729140747457,3.2617,153.32,153.29,9.02]
[1729140748456,3.2617,153.32,153.29,12.2822]
[1729140749463,3.2617,153.32,153.31,9.02]
[1729140749656,3.2617,153.32,153.31,12.25110413]
[1729140750561,3.2615,153.33,153.31,12.25110413]
[1729140752154,3.2615,153.33,153.31,15.51290413]
[1729140756162,3.2616,153.32,153.31,12.25110413]
[1729140760561,3.2616,153.32,153.31,3.23110413]
[1729140760763,3.2616,153.32,153.3,9.02]
[1729140762870,3.2616,153.32,153.3,12.282]
[1729140764570,3.2613,153.34,153.31,12.2817]
[1729140764773,3.2613,153.34,153.33,9.02]
[1729140765270,5.26,153.35,153.31,12.27459832]
[1729140765571,5.26,153.35,153.31,3.25459832]
[1729140765773,5.26,153.35,153.3,9.02]
[1729140765974,3.2613,153.34,153.3,12.282]
[1729140766271,5.26,153.35,153.3,12.282]
[1729140768366,3.2614,153.33,153.3,12.282]
[1729140770274,3.2617,153.32,153.31,3.33584944]
[1729140770476,3.2617,153.32,153.29,12.2822]
[1729140772579,3.2614,153.33,153.3,3.2619]
[1729140772770,3.2614,153.33,153.31,3.26938253]
[1729140773275,3.2614,153.33,153.29,12.2821]
[1729140774172,3.2613,153.34,153.3,3.2619]
[1729140774475,5.26,153.35,153.31,12.25283124]
[1729140774676,5.26,153.35,153.31,9.02]
[1729140775178,5.26,153.35,153.31,12.30798211]
[1729140775376,3.2616,153.33,153.31,12.30798211]
[1729140777171,3.2616,153.32,153.31,12.30798211]
[1729140778790,3.2624,153.29,153.27,9.02]
[1729140779190,3.2624,153.29,153.24,2.7905]
[1729140779389,3.2624,153.29,153.27,9.02]
[1729140786496,16.36789215,153.38,153.24,2.7905]
[1729140786497,5.1,153.34,153.28,9.02]
[1729140786697,3.2615,153.33,153.31,9.02]
[1729140787001,3.2615,153.33,153.32,3.21225252]
[1729140793601,3.2615,153.33,153.31,9.02]
[1729140793806,3.2606,153.37,153.32,12.2814]
[1729140794105,5.0,153.38,153.35,9.02]
[1729140794312,5.0,153.38,153.35,12.30211848]
[1729140794509,5.0,153.38,153.35,3.28211848]
[1729140794800,3.2607,153.36,153.34,9.02]
[1729140795002,5.0,153.38,153.35,12.33343889]
[1729140795202,5.0,153.38,153.35,9.02]
[1729140795407,3.2607,153.37,153.34,9.02]
[1729140795607,3.2607,153.37,153.35,3.28211848]
[1729140797505,14.91228653,153.45,153.32,2.7544]
[1729140797707,9.02,153.42,153.36,9.02]
[1729140797903,9.02,153.42,153.36,12.31451614]
[1729140798306,5.0,153.41,153.36,12.31451614]
[1729140799413,3.2601,153.4,153.36,12.31451614]
[1729140800602,5.0,153.41,153.36,12.31451614]
[1729140800808,3.2601,153.39,153.36,12.31451614]
[1729140803807,3.2603,153.38,153.36,3.29451614]
[1729140804007,3.2603,153.38,153.34,12.2811]
[1729140804605,9.02,153.4,153.34,12.33942965]
[1729140805114,3.2607,153.36,153.34,3.31942965]
[1729140805313,9.02,153.38,153.32,2.7544]
[1729140805512,9.02,153.38,153.32,11.7744]
[1729140805712,5.0,153.37,153.32,11.7744]
[1729140805906,5.0,153.37,153.24,1.4217]
[1729140805907,9.02,153.33,153.24,1.4217]
[1729140806110,9.02,153.3,153.25,2.6857]
[1729140806508,3.2626,153.28,153.25,2.6857]
[1729140806911,3.2628,153.27,153.25,2.6857]
[1729140808416,3.2626,153.28,153.25,2.6857]
[1729140808722,5.0,153.33,153.26,9.02]
[1729140808919,3.2625,153.28,153.26,9.02]
[1729140815328,3.2625,153.28,153.25,2.6857]
[1729140815728,3.2625,153.28,153.25,11.7057]
[1729140817423,3.2628,153.27,153.25,11.7057]
[1729140824835,3.2628,153.27,153.25,14.9688]
[1729140825235,3.2628,153.27,153.25,5.9488]
[1729140825435,3.2628,153.27,153.25,14.9688]
[1729140833638,4.88,153.3,153.25,11.7057]
[1729140833639,3.2629,153.26,153.25,11.7057]
[1729140836036,3.2625,153.28,153.25,14.9686]
[1729140836943,3.2625,153.28,153.25,5.9486]
[1729140837144,3.2625,153.28,153.25,11.7057]
[1729140837342,3.2625,153.28,153.26,3.2629]
[1729140837546,3.2627,153.27,153.25,11.7057]
[1729140842236,13.9,153.3,153.25,11.7057]
[1729140842443,3.2629,153.26,153.25,11.7057]
[1729140843339,13.9,153.3,153.25,11.7057]
[1729140843543,3.2627,153.27,153.25,11.7057]
[1729140844042,3.2629,153.26,153.25,2.6857]
[1729140846749,3.2629,153.26,153.24,12.2833]
[1729140849057,3.2629,153.26,153.24,3.2633]
[1729140849355,3.2627,153.27,153.25,9.02]
[1729140852451,3.2628,153.27,153.25,9.02]
[1729140853457,3.2628,153.27,153.24,3.2632]
[1729140853659,3.2628,153.27,153.24,12.2832]
[1729140854051,3.263,153.26,153.23,6.45747767]
[1729140854748,3.2631,153.25,153.23,6.45747767]
[1729140855157,3.2627,153.27,153.25,3.263]
[1729140858355,8.0625,153.28,153.25,9.02]
[1729140859362,8.0625,153.28,153.25,12.283]
[1729140865557,3.263,153.26,153.23,3.19407767]
[1729140865763,4.8,153.28,153.24,9.02]
[1729140865958,4.8,153.28,153.24,12.25193096]
[1729140866361,3.2629,153.26,153.24,3.23193096]
[1729140866561,4.8,153.28,153.24,9.02]
[1729140866756,4.8,153.28,153.24,12.34463558]
[1729140867357,3.2628,153.27,153.24,15.60783558]
[1729140867665,4.8,153.28,153.24,12.34463558]
[1729140867859,4.8,153.28,153.24,3.32463558]
[1729140868059,3.2627,153.27,153.23,12.2834]
[1729140868562,3.2629,153.26,153.23,15.58257445]
[1729140877270,3.2633,153.24,153.23,3.29917445]
[1729140877475,3.2633,153.24,153.22,2.8568]
[1729140877678,3.2633,153.24,153.23,9.02]
[1729140878169,3.2633,153.24,153.22,6.17098999]
[1729140878376,3.2635,153.24,153.22,6.17098999]
[1729140878577,3.2635,153.24,153.22,15.19098999]
[1729140878776,3.2635,153.24,153.22,6.17098999]
[1729140878973,3.2635,153.24,153.22,15.19098999]
[1729140883580,3.2635,153.24,153.22,18.45468999]
[1729140887787,3.2634,153.24,153.22,15.19098999]
[1729140888374,3.2634,153.24,153.22,18.45468999]
[1729140891183,3.2634,153.24,153.22,9.43468999]
[1729140891582,3.2634,153.24,153.22,18.45468999]
[1729140892677,3.2634,153.24,153.22,9.43468999]
[1729140893175,3.2634,153.24,153.22,18.45468999]
[1729140894277,6.5237,153.32,153.24,3.2632]
[1729140894580,1.3441,153.35,153.25,9.02]
[1729140894884,3.2616,153.32,153.3,9.02]
[1729140895075,3.2616,153.32,153.31,3.21549321]
[1729140895483,3.2614,153.33,153.31,9.02]
[1729140895680,4.8,153.36,153.32,9.02]
[1729140895879,4.8,153.37,153.32,9.02]
[1729140896481,3.2608,153.36,153.32,15.61679889]
[1729140896679,4.8,153.37,153.34,9.02]
[1729140897586,4.8,153.37,153.35,3.31018105]
[1729140898395,3.2608,153.36,153.35,3.31018105]
[1729140899587,3.2608,153.36,153.32,12.2815]
[1729140899983,3.261,153.35,153.32,15.48498522]
[1729140903887,3.2614,153.33,153.26,3.2627]
[1729140904078,3.2614,153.33,153.15,10.8571434]
[1729140904079,9.02,153.32,153.27,9.02]
[1729140904279,9.02,153.32,153.25,2.6528]
[1729140904280,9.02,153.3,153.25,2.6528]
[1729140904686,3.2628,153.27,153.25,2.6528]
[1729140908194,9.02,153.3,153.25,2.6528]
[1729140908389,3.2626,153.28,153.25,14.9358]
[1729140908884,4.8,153.35,153.26,9.02]
[1729140909086,4.8,153.35,153.32,9.02]
[1729140909288,4.8,153.35,153.32,12.36161584]
[1729140909796,25.35209137,153.43,153.33,9.02]
[1729140910094,4.8,153.38,153.34,9.02]
[1729140910287,4.8,153.38,153.34,12.31745243]
[1729140910690,3.2609,153.36,153.34,12.31745243]
[1729140911690,3.2609,153.36,153.34,3.29745243]
[1729140911888,3.2609,153.36,153.34,9.02]
[1729140912195,3.2609,153.36,153.35,3.2876648]
[1729140913695,3.2609,153.36,153.33,12.2813]
[1729140914298,3.2609,153.36,153.33,15.58288917]
[1729140916702,9.02,153.38,153.33,12.32158917]
[1729140917691,3.2611,153.35,153.33,12.32158917]
[1729140919398,3.2608,153.36,153.34,9.02]
[1729140920402,3.2608,153.36,153.34,12.2811]
[1729140922405,3.2606,153.37,153.34,12.2811]
[1729140923105,3.2611,153.35,153.33,6.07318917]
[1729140923300,3.2611,153.35,153.33,15.09318917]
[1729140923502,9.02,153.39,153.33,6.07318917]
[1729140923701,9.02,153.39,153.33,15.09318917]
[1729140924608,3.2611,153.35,153.33,15.09318917]
[1729140932004,9.02,153.37,153.33,3.30158917]
[1729140932200,9.02,153.37,153.31,9.02]
[1729140932409,9.02,153.36,153.31,12.27319487]
[1729140932608,3.2616,153.32,153.31,12.27319487]
[1729140932906,4.78,153.36,153.31,12.27319487]
[1729140934410,4.78,153.36,153.31,15.53499487]
[1729140935115,3.2614,153.33,153.32,9.02]
[1729140936907,3.2612,153.34,153.32,9.02]
[1729140937209,4.78,153.36,153.33,3.2613]
[1729140937413,4.78,153.36,153.34,9.02]
[1729140937612,13.8,153.39,153.33,3.2613]
[1729140937811,13.8,153.39,153.34,9.02]
[1729140938406,4.78,153.39,153.34,9.02]
[1729140939812,13.8,153.39,153.34,9.02]
[1729140940206,3.2609,153.36,153.34,9.02]
[1729140944214,3.261,153.35,153.34,9.02]
[1729140949523,3.2608,153.36,153.34,9.02]
[1729140952621,3.2604,153.38,153.36,3.2607]
[1729140953027,3.2604,153.38,153.35,9.02]
[1729140954423,3.2604,153.38,153.35,12.2808]
[1729140954721,3.2604,153.38,153.37,9.02]
[1729140955530,9.02,153.42,153.37,9.02]
[1729140955831,3.2599,153.4,153.39,9.02]
[1729140956626,3.2599,153.4,153.39,12.31724443]
[1729140956932,3.2598,153.41,153.39,12.31724443]
[1729140957320,1.3825,153.49,153.4,9.02]
[1729140957527,1.3825,153.49,153.33,4.78]
[1729140957528,3.2588,153.46,153.43,9.02]
[1729140957725,4.78,153.48,153.44,9.02]
[1729140958234,3.2586,153.47,153.44,12.2350498]
[1729140959234,3.2586,153.47,153.44,15.4940498]
[1729140959430,3.2586,153.47,153.44,12.2350498]
[1729140960922,3.2586,153.47,153.44,15.4939498]
[1729140962033,3.2586,153.47,153.44,12.2350498]
[1729140962633,13.8,153.5,153.44,12.2350498]
[1729140962829,3.2586,153.46,153.44,12.2350498]
[1729140963539,9.02,153.51,153.45,9.02]
[1729140963744,4.78,153.52,153.47,9.02]
[1729140963949,1.3825,153.55,153.5,9.02]
[1729140964137,9.02,153.56,153.51,9.02]
[1729140964336,4.78,153.56,153.51,9.02]
[1729140964538,3.2572,153.53,153.51,9.02]
[1729140965438,13.8,153.56,153.51,9.02]
[1729140966246,3.2573,153.52,153.51,9.02]
[1729140967049,4.78,153.56,153.51,9.02]
[1729140967250,13.8,153.56,153.51,9.02]
[1729140967449,4.78,153.56,153.51,9.02]
[1729140967650,13.8,153.56,153.51,9.02]
[1729140967849,4.78,153.56,153.51,9.02]
[1729140968050,4.78,153.56,153.52,9.02]
[1729140968247,9.02,153.57,153.52,9.02]
[1729140968450,13.8,153.57,153.52,9.02]
[1729140968854,3.2571,153.54,153.52,9.02]
[1729140970152,3.2568,153.55,153.53,9.02]
[1729140972151,4.78,153.58,153.53,9.02]
[1729140972356,3.2565,153.56,153.53,12.2771]
[1729140972557,3.2565,153.56,153.53,9.02]
[1729140973758,3.2567,153.55,153.53,9.02]
[1729140977361,3.2569,153.54,153.53,9.02]
[1729140978454,3.2572,153.53,153.52,9.02]
[1729140985158,3.2573,153.52,153.51,9.02]
[1729140985960,9.02,153.57,153.48,3.2581]
[1729140986169,9.02,153.56,153.5,9.02]
[1729140986670,3.2576,153.51,153.5,9.02]
[1729140987360,3.2576,153.51,153.5,12.29523463]
[1729140989467,3.2576,153.51,153.5,3.27523463]
[1729140989669,3.2576,153.51,153.5,9.02]
[1729140989871,3.2576,153.51,153.5,12.35279773]
[1729140991668,3.2574,153.52,153.5,12.35279773]
[1729140991874,3.2574,153.52,153.51,9.02]
[1729140992973,3.2574,153.52,153.51,12.34759096]
[1729141003277,9.02,153.57,153.51,12.34759096]
[1729141003278,3.2572,153.53,153.51,12.34759096]
[1729141005681,9.02,153.57,153.51,12.34759096]
[1729141005886,3.2573,153.52,153.51,12.34759096]
[1729141007385,9.02,153.54,153.45,5.9571]
[1729141007584,3.2582,153.48,153.47,9.02]
[1729141007791,3.2582,153.48,153.47,12.34628072]
[1729141034709,3.2582,153.48,153.47,3.32628072]
[1729141034912,3.2593,153.43,153.42,72.7238443]
[1729141036712,3.2593,153.43,153.42,63.7038443]
[1729141036902,9.02,153.46,153.41,9.02]
[1729141037108,13.8,153.46,153.41,9.02]
[1729141038509,3.2596,153.42,153.41,9.02]
[1729141038915,3.2601,153.4,153.38,2.7776]
[1729141039217,3.2601,153.4,153.39,9.02]
[1729141039407,9.02,153.45,153.39,9.02]
[1729141040715,3.2598,153.41,153.39,9.02]
[1729141042511,9.02,153.45,153.4,9.02]
[1729141043017,3.2598,153.41,153.4,9.02]
[1729141047717,4.78,153.46,153.4,9.02]
[1729141047918,4.78,153.48,153.44,9.02]
[1729141048114,3.2588,153.45,153.44,12.20497437]
[1729141049520,3.2588,153.45,153.44,3.18497437]
[1729141050522,3.2595,153.42,153.41,9.02]
[1729141050720,9.02,153.46,153.38,6.196]
[1729141051018,9.02,153.45,153.39,9.02]
[1729141052427,3.2599,153.4,153.39,9.02]
[1729141062131,3.2598,153.41,153.39,9.02]
[1729141068435,13.8,153.45,153.39,9.02]
[1729141068931,3.2598,153.41,153.39,9.02]
[1729141073842,3.2598,153.41,153.38,4.6763]
[1729141074037,3.2598,153.41,153.4,9.02]
[1729141078438,3.2594,153.43,153.4,9.02]
[1729141078640,3.2594,153.43,153.38,1.416]
[1729141078641,3.2594,153.43,153.41,9.02]
[1729141081042,4.78,153.45,153.4,9.02]
[1729141081343,13.8,153.45,153.4,9.02]
[1729141081740,3.2597,153.42,153.4,9.02]
[1729141084761,3.2597,153.41,153.4,9.02]
[1729141087051,3.2595,153.42,153.4,12.2798]
[1729141089053,3.2595,153.42,153.4,9.02]
[1729141090451,1.3832,153.49,153.41,9.02]
[1729141090654,10.4032,153.49,153.44,9.02]
[1729141090951,6.5133,153.56,153.46,9.02]
[1729141091150,4.78,153.5,153.46,9.02]
[1729141091352,3.2585,153.47,153.46,9.02]
[1729141091553,3.2585,153.47,153.46,12.28716285]
[1729141092458,3.2585,153.47,153.46,3.26716285]
[1729141092653,3.2585,153.47,153.45,9.02]
[1729141093152,13.78,153.5,153.45,3.27759482]
[1729141093457,13.78,153.5,153.44,9.02]
[1729141093658,9.02,153.49,153.44,12.24184897]
[1729141094553,3.2588,153.45,153.44,12.24184897]
[1729141095363,3.2588,153.45,153.44,3.22184897]
[1729141095654,3.2591,153.44,153.42,10.3944]
[1729141095862,9.02,153.43,153.34,3.2905486]
[1729141096063,3.2603,153.39,153.34,9.02]
[1729141096355,4.76,153.41,153.36,9.02]
[1729141096561,13.78,153.41,153.36,9.02]
[1729141097462,4.76,153.41,153.36,9.02]
[1729141097655,13.78,153.41,153.36,9.02]
[1729141098052,3.2602,153.39,153.36,12.2807]
[1729141098655,3.2602,153.39,153.36,9.02]
[1729141099260,3.2602,153.39,153.36,12.2807]
[1729141103465,4.76,153.42,153.3,3.24357465]
[1729141103666,6.5175,153.46,153.37,9.02]
[1729141103966,3.2603,153.39,153.37,12.32083614]
[1729141106461,9.02,153.42,153.37,3.30083614]
[1729141106661,9.02,153.42,153.37,9.02]
[1729141106965,9.02,153.42,153.37,12.26733905]
[1729141107364,3.2602,153.39,153.37,12.26733905]
[1729141108661,3.2603,153.38,153.37,3.24733905]
[1729141108964,3.2603,153.38,153.36,9.02]
[1729141109166,3.2603,153.38,153.36,12.24114889]
[1729141110169,3.2603,153.38,153.36,15.50184889]
[1729141111167,3.2601,153.4,153.37,3.2605]
[1729141111361,3.2601,153.4,153.39,9.02]
[1729141117376,3.2605,153.37,153.36,3.22114889]
[1729141117567,3.2605,153.37,153.36,9.02]
[1729141117764,3.2605,153.37,153.36,12.29409808]
[1729141119976,3.2605,153.37,153.36,3.27409808]
[1729141120276,3.261,153.35,153.34,9.02]
[1729141120776,3.261,153.35,153.34,12.29702194]
[1729141121376,3.261,153.35,153.34,3.27702194]
[1729141121575,3.261,153.35,153.34,9.02]
[1729141121772,3.261,153.35,153.34,12.33909777]
[1729141122075,3.261,153.35,153.34,3.31909777]
[1729141122276,3.2612,153.34,153.33,9.02]
[1729141122482,3.2612,153.34,153.33,12.2350498]
[1729141127380,4.86,153.39,153.33,12.2350498]
[1729141127683,4.86,153.39,153.35,9.02]
[1729141127884,3.2609,153.36,153.35,9.02]
[1729141130882,4.86,153.4,153.32,3.30093675]
[1729141131082,9.02,153.38,153.32,9.02]
[1729141131283,9.02,153.38,153.32,12.25047501]
[1729141132384,3.2614,153.33,153.32,12.25047501]
[1729141137693,9.02,153.34,153.14,3.29639522]
[1729141137893,9.02,153.32,153.28,9.02]
[1729141138101,127.58012842,153.35,153.28,12.27254338]
[1729141138394,3.2622,153.29,153.28,12.27254338]
[1729141140799,3.2621,153.3,153.28,12.27254338]
[1729141140998,3.2621,153.3,153.29,9.02]
[1729141145507,127.58012842,153.35,153.29,9.02]
[1729141145695,3.2616,153.32,153.31,9.02]
[1729141149007,3.2615,153.33,153.31,9.02]
[1729141151014,3.2615,153.33,153.31,12.2817]
[1729141152308,3.2613,153.34,153.31,12.2817]
[1729141152700,127.58012842,153.35,153.31,12.2817]
[1729141153909,3.2612,153.34,153.31,12.2817]
[1729141157314,3.2615,153.33,153.31,9.02]
[1729141166408,9.02,153.34,153.28,3.25254338]
[1729141166611,9.02,153.32,153.27,4.86]
[1729141166817,9.02,153.32,153.27,12.36399872]
[1729141167215,3.2621,153.3,153.27,15.62649872]
[1729141168312,3.2621,153.3,153.27,12.36399872]
[1729141168513,3.2621,153.3,153.28,3.2624]
[1729141169014,3.2621,153.3,153.27,15.62659872]
[1729141172521,3.2621,153.3,153.27,6.60659872]
[1729141172722,3.2621,153.3,153.28,9.02]
[1729141177523,3.2621,153.3,153.28,12.2824]
[1729141178127,3.2621,153.3,153.29,9.02]
[1729141184927,13.9,153.34,153.29,9.02]
[1729141185131,13.9,153.34,153.29,12.2822]
[1729141186132,4.88,153.34,153.3,9.02]
[1729141187238,4.78,153.35,153.31,9.02]
[1729141187437,9.02,153.37,153.31,9.02]
[1729141187633,4.78,153.36,153.31,9.02]
[1729141188034,3.2615,153.33,153.31,9.02]
[1729141188237,3.2615,153.33,153.31,12.2817]
[1729141190738,3.2615,153.33,153.31,9.02]